{"text_format":"1","workbook":"xlsx","n_sheets":3,"sheets":["Sheet2","WORKSHEET","VP43"],"not_rendered":{"charts":0,"images":0,"macros":1,"external_links":0,"defined_names":0,"comments":0,"pivot_tables":0},"unopened":[],"bounds":{"document_bytes":16777216,"sheet_cells":100000,"rows_first":2000,"rows_last":500,"rows_between":2000,"halvings":0,"cell_chars":16384,"cell_head_chars":4096},"cells_cut":0,"cells_raw":0,"read":"whole","date_system":"1900"}

{"sheet":"Sheet2","index":0,"n_rows":4,"n_cols":3,"rows_kept":4,"cut":false,"hidden":true,"merged":[]}
["A","DAYS","4.9 SINGLE"]
["B","NIGHTS","5.5 SINGLE"]
["C",null,"5.5 6-PACK"]
["D",null,"5.7 6-PACK"]

{"sheet":"WORKSHEET","index":1,"n_rows":21,"n_cols":2,"rows_kept":21,"cut":false,"hidden":true,"merged":[]}
["COMPONENT","VALUE"]
["Unwind Group"]
["Sheet Presence Check"]
["Infeed"]
["Rolls Check Enabling"]
["Overh.-F. Seal. Outf."]
["Actual Drawer Case Width"]
["Phases & Ramps"]
["Side Flap Blow Start"]
["Side Flap Blow End"]
["Mechanical Adjustments"]
["Launcher Width"]
["Left Film Positioning Belt Width"]
["Right Film Positioning Belt Width"]
["Right Upper Hopper Width"]
["Left Upper Hopper Width"]
["Right Lower Hopper Width"]
["Left Lower Hopper Width"]
["Upper Contrast Height"]
[]
["Poly Placement"]

{"sheet":"VP43","index":2,"n_rows":33,"n_cols":8,"rows_kept":33,"cut":false,"hidden":false,"merged":[[0,0,1,4],[12,0,20,0],[9,2,9,3],[10,2,10,3],[11,2,11,3],[16,2,16,3],[12,2,12,3],[20,2,20,3],[8,2,8,3],[21,0,25,0],[28,0,30,0],[2,0,3,2],[4,0,7,2],[9,0,11,0],[8,0,8,1],[31,1,31,2],[22,2,22,3],[23,2,23,3],[24,2,24,3],[29,2,29,3],[30,2,30,3]]}
["RETURN TO HUB"]
[]
["HHT3 WINDER CENTERLINES",null,null,"Team:","D"]
[null,null,null,"Shift:","DAYS"]
["VP43",null,null,"Date:","2019-03-26"]
[null,null,null,"Resource:",202913]
[null,null,null,"#1 Sheet",3178285]
[null,null,null,"#2 Sheet",47010200]
["CENTERLINE ",null,"TARGET",null,"DATA ENTRY"]
["EMBOSS","#2 Footprint",1.625,null,1.625,"WORKING",{"$f":"CondFormulaformula(E10)","v":"=E10<>C10"},{"$f":"CondFormula(E10)","v":"False"}]
[null,"#1 Footprint",1.625,null,1.625,"WORKING",{"$f":"CondFormulaformula(E11)","v":"=E10<>C10"},{"$f":"CondFormula(E11)","v":"False"}]
[null,"Marrying Roll ",0.625,null,0.625,"WORKING","=E10<>C10","False"]
["REWINDER","Speed (Logs Per Minute)",8,null,8,"WORKING","=$E$13<>$C$13","False"]
[null,"Perf Postion offset ",7,7.5,7.6,"WORKING","=OR($E$14<$C$14,$E$14>$D$14)","True"]
[null,"Draw Roll run speed trim",1.04,1.052,1.04,"WORKING","=OR($E$15<$C$15,$E$15>$D$15)","False"]
[null,"Draw roll run speeed trim core prep ",1.04,1.052,1.04,"WORKING","=IF(E16<C16,\"True\",\"pass\")",{"$f":"CondFormula(E16)","v":"pass"}]
[null,"Lower Winding roll run speed trim ",-5,null,-5,"NOT WORKING","=E17<>C17","False"]
[null,"Lower winding roll run speed trim core prep ",-3.9,-3.1,-3.9,"NOT WORKING","=IF(E18>D18,\"true\",\"pass\")","pass"]
[null,"Rider Roll transfer speed ",45,65,66,"NOT WORKING","=IF(E19>D19,\"true\",\"pass\")","true"]
[null,"Rider roll kickout start accel degree",353,355,354,"WORKING","=IF(E20>D20,\"true\",\"pass\")","pass"]
[null,"Roll Diameter trim ",1.042,null,1.5,"NOT WORKING","=E21<>C21","True"]
["REWINDER SETUP ADJUSTMENTS","Core Crush",0.1,0.25,0.1,"NOT WORKING","=IF(E22<C22,\"True\",\"pass\")","pass"]
[null,"Rider Roll offset postion",-0.05,null,-2,"NOT WORKING'","=E23<>C23","True"]
[null,"Rider roll kickout accel duration",14,null,15,"WORKING","=E24<>C24","True"]
[null,"Rider roll run speed trim ",1.03,null,1,"NOT WORKING","=E25<>C25","True"]
[null,"Rider Roll start move down to wind ",0,3,4,"WORKING","=OR($E$26<$C$26,$E$26>$D$26)","True"]
["LOGSAW","Speed (Cuts Per Minute)",55,"65",70,"NOT WORKING","=IF(E27>D27,\"true\",\"pass\")","pass"]
["TAIL SEALER","Glue Percentage ",20,25,19,"NOT WORKING'","=IF(E28>D28,\"true\",\"pass\")","pass"]
["FINISHED ROLL DIAMETER","Finished Roll Diameter",5.15,5.3,5.4,"NOT WORKING","=IF(E29>D29,\"true\",\"pass\")","true"]
[null,"Sheet Count ",104,null,105,"NOT WORKING","=E30<>C30","True"]
[null,"Sheet Length ",6.1,null,6.2,"NOT WORKING","=E31<>C31","True"]
[null,"OUT OF SPEC",null,null,{"$f":"COUNTA(E10:E31)","v":22}]
[null,null,null,null,{"$f":"COUNTConditionColorCells($E$10:$E$31,D32)","v":6},null,null,{"$f":"COUNTA(H10:H31)-SUMPRODUCT(--(H10:H31=\"False\"))","v":16}]